[Event "Elitserien 2019/2020, round 7-9"]
[Site "Elite stadshotellet, Kungsgatan 6, Vaxjo, Sweden"]
[Date "2020.10.17"]
[Round "2.5"]
[White "Mauritsson, Sebastian"]
[Black "Bellon Lopez, Juan Manuel"]
[Result "1-0"]
[TimeControl "90 minutes for 40 moves + 30 minutes for the rest of the game + 30 seconds per move from move one."]
[WhiteTitle "FM"]
[BlackTitle "GM"]
[WhiteFideId "1707892"]
[BlackFideId "2200031"]
[WhiteElo "2362"]
[BlackElo "2348"]

1. e4 {[%clk 01:30:55]} {[%emt 00:00:04]} c5 {[%clk 01:31:22]} {[%emt
00:00:08]} 2. Nf3 {[%clk 01:31:14]} {[%emt 00:00:12]} e6 {[%clk 01:31:30]}
{[%emt 00:00:21]} 3. d4 {[%clk 01:31:37]} {[%emt 00:00:07]} cxd4 {[%clk
01:31:55]} {[%emt 00:00:06]} 4. Nxd4 {[%clk 01:32:01]} {[%emt 00:00:05]} Nf6
{[%clk 01:32:16]} {[%emt 00:00:09]} 5. Nc3 {[%clk 01:32:26]} {[%emt 00:00:05]}
Nc6 {[%clk 01:32:37]} {[%emt 00:00:09]} 6. Ndb5 {[%clk 01:32:42]} {[%emt
00:00:14]} Bc5 {[%clk 01:32:56]} {[%emt 00:00:11]} 7. Bf4 {[%clk 01:33:01]}
{[%emt 00:00:11]} O-O {[%clk 01:33:17]} {[%emt 00:00:09]} 8. Bc7 {[%clk
01:33:22]} {[%emt 00:00:09]} Qe7 {[%clk 01:33:43]} {[%emt 00:00:05]} 9. Bd6
{[%clk 01:33:40]} {[%emt 00:00:13]} Bxd6 {[%clk 01:34:05]} {[%emt 00:00:08]} 10.
Qxd6 {[%clk 01:34:06]} {[%emt 00:00:04]} Qd8 {[%clk 01:34:29]} {[%emt
00:00:06]} 11. Nc7 {[%clk 01:34:01]} {[%emt 00:00:34]} Rb8 {[%clk 01:31:54]}
{[%emt 00:03:04]} 12. Be2 {[%clk 01:34:27]} {[%emt 00:00:05]} a6 {[%clk
01:31:23]} {[%emt 00:01:01]} 13. a4 {[%clk 01:15:25]} {[%emt 00:19:32]} Qe7
{[%clk 01:27:03]} {[%emt 00:04:49]} 14. Qxe7 {[%emt 00:13:47]} Nxe7 {[%clk
01:27:17]} {[%emt 00:00:12]} 15. e5 {[%clk 01:02:30]} {[%emt 00:00:12]} Ne8
{[%clk 01:08:55]} {[%emt 00:18:52]} 16. Nxe8 {[%clk 01:02:58]} {[%emt
00:00:03]} Rxe8 {[%clk 01:09:20]} {[%emt 00:00:04]} 17. f4 {[%clk 01:02:26]}
{[%emt 00:01:01]} d5 {[%clk 01:01:50]} {[%emt 00:08:01]} 18. exd6 {[%clk
01:01:16]} {[%emt 00:01:40]} Nd5 {[%clk 00:59:59]} {[%emt 00:02:21]} 19. Nxd5
{[%clk 00:53:30]} {[%emt 00:08:16]} exd5 {[%clk 01:00:21]} {[%emt 00:00:07]} 20.
Kf2 {[%clk 00:49:46]} {[%emt 00:04:14]} Bf5 {[%clk 00:48:56]} {[%emt 00:11:55]}
21. Rhd1 {[%clk 00:45:00]} {[%emt 00:05:17]} Bxc2 {[%clk 00:30:54]} {[%emt
00:18:32]} 22. Rxd5 {[%clk 00:45:06]} {[%emt 00:00:24]} Bb3 {[%clk 00:27:31]}
{[%emt 00:03:53]} 23. Rd4 {[%clk 00:33:36]} {[%emt 00:12:01]} Red8 {[%clk
00:24:34]} {[%emt 00:03:26]} 24. Rc1 {[%clk 00:29:41]} {[%emt 00:04:25]} Be6
{[%clk 00:19:54]} {[%emt 00:05:10]} 25. Rc7 {[%clk 00:17:16]} {[%emt 00:12:54]}
Kf8 {[%clk 00:19:47]} {[%emt 00:00:37]} 26. Bf3 {[%clk 00:16:47]} {[%emt
00:00:59]} Rd7 {[%clk 00:18:17]} {[%emt 00:02:01]} 27. Rxd7 {[%clk 00:13:01]}
{[%emt 00:04:16]} Bxd7 {[%clk 00:17:40]} {[%emt 00:01:07]} 28. Rb4 {[%clk
00:07:22]} {[%emt 00:06:09]} b5 {[%clk 00:09:53]} {[%emt 00:08:17]} 29. a5
{[%clk 00:07:33]} {[%emt 00:00:19]} Ke8 {[%clk 00:04:04]} {[%emt 00:06:19]} 30.
Re4+ {[%clk 00:05:15]} {[%emt 00:02:49]} Kf8 {[%clk 00:02:37]} {[%emt
00:01:56]} 31. Rb4 {[%clk 00:03:42]} {[%emt 00:02:03]} Ke8 {[%clk 00:02:48]}
{[%emt 00:00:19]} 32. Ke3 {[%clk 00:04:00]} {[%emt 00:00:11]} Kd8 {[%clk
00:02:45]} {[%emt 00:00:33]} 33. Kd4 {[%clk 00:03:39]} {[%emt 00:00:51]} Be6
{[%clk 00:01:47]} {[%emt 00:01:28]} 34. Kc5 {[%clk 00:02:30]} {[%emt 00:01:40]}
Bc4 {[%clk 00:02:07]} {[%emt 00:00:09]} 35. b3 {[%clk 00:02:10]} {[%emt
00:00:49]} Be6 {[%clk 00:02:33]} {[%emt 00:00:05]} 36. Bc6 {[%clk 00:02:04]}
{[%emt 00:00:36]} f5 {[%clk 00:00:44]} {[%emt 00:02:19]} 37. Rd4 {[%clk
00:01:20]} {[%emt 00:01:14]} Bxb3 {[%clk 00:01:07]} {[%emt 00:00:07]} 38. Rd3
{[%clk 00:01:43]} {[%emt 00:00:06]} Bc2 {[%clk 00:00:36]} {[%emt 00:01:00]} 39.
Rg3 {[%clk 00:00:52]} {[%emt 00:01:22]} g6 {[%clk 00:00:46]} {[%emt 00:00:21]}
40. Rh3 {[%clk 00:01:17]} {[%emt 00:00:05]} h5 {[%clk 00:00:41]} {[%emt
00:00:35]} 41. Rg3 {[%clk 00:01:40]} {[%emt 00:00:07]} Be4 {[%clk 00:01:04]}
{[%emt 00:00:07]} 42. Rxg6 {[%clk 00:29:31]} {[%emt 00:02:39]} Bxc6 {[%clk
00:31:25]} {[%emt 00:00:09]} 43. Kxc6 {[%clk 00:29:51]} {[%emt 00:00:11]} Rc8+
{[%clk 00:31:51]} {[%emt 00:00:03]} 44. Kb7 {[%clk 00:12:22]} {[%emt 00:17:59]}
Rc1 {[%clk 00:24:07]} {[%emt 00:08:14]} 45. Kxa6 {[%clk 00:12:29]} {[%emt
00:00:23]} b4 {[%clk 00:22:44]} {[%emt 00:01:53]} 46. Rg8+ {[%clk 00:06:45]}
{[%emt 00:06:15]} Kd7 {[%clk 00:23:09]} {[%emt 00:00:05]} 47. Rb8 {[%clk
00:07:08]} {[%emt 00:00:06]} Rc4 {[%clk 00:22:10]} {[%emt 00:01:29]} 48. Rb6
{[%clk 00:02:50]} {[%emt 00:04:49]} Rc6 {[%clk 00:22:13]} {[%emt 00:00:27]} 49.
Ka7 {[%clk 00:03:14]} {[%emt 00:00:05]} Kxd6 {[%clk 00:19:05]} {[%emt
00:03:38]} 50. Rxb4 {[%clk 00:03:40]} {[%emt 00:00:04]} Rc2 {[%clk 00:19:33]}
{[%emt 00:00:02]} 51. Kb7 {[%clk 00:01:48]} {[%emt 00:02:22]} Kc5 {[%clk
00:15:52]} {[%emt 00:04:11]} 52. Rb6 {[%clk 00:02:00]} {[%emt 00:00:18]} Rxg2
{[%clk 00:16:18]} {[%emt 00:00:04]} 53. Rc6+ {[%clk 00:01:52]} {[%emt
00:00:38]} Kd5 {[%clk 00:10:51]} {[%emt 00:05:57]} 54. a6 {[%clk 00:01:30]}
{[%emt 00:00:52]} Ra2 {[%clk 00:08:42]} {[%emt 00:02:37]} 55. Rh6 {[%clk
00:01:34]} {[%emt 00:00:27]} Ke4 {[%clk 00:08:13]} {[%emt 00:01:00]} 56. a7
{[%clk 00:01:49]} {[%emt 00:00:15]} Kxf4 {[%clk 00:07:25]} {[%emt 00:01:18]} 57.
Ra6 {[%clk 00:01:45]} {[%emt 00:00:35]} Rb2+ {[%clk 00:06:54]} {[%emt
00:01:01]} 58. Kc7 {[%clk 00:02:09]} {[%emt 00:00:05]} Rc2+ {[%clk 00:07:11]}
{[%emt 00:00:13]} 59. Kd7 {[%clk 00:02:34]} {[%emt 00:00:05]} 1-0

[Event "Elitserien 2019/2020, round 7-9"]
[Site "Elite stadshotellet, Kungsgatan 6, Vaxjo, Sweden"]
[Date "2020.10.17"]
[Round "2.6"]
[White "Cramling, Dan"]
[Black "Jogstad, Martin"]
[Result "0-1"]
[TimeControl "90 minutes for 40 moves + 30 minutes for the rest of the game + 30 seconds per move from move one."]
[WhiteTitle "IM"]
[BlackTitle "FM"]
[WhiteFideId "1700162"]
[BlackFideId "1715364"]
[WhiteElo "2296"]
[BlackElo "2302"]

1. c4 {[%clk 01:30:23]} {[%emt 00:00:37]} c6 {[%clk 01:30:58]} {[%emt
00:00:02]} 2. d4 {[%clk 01:30:43]} {[%emt 00:00:11]} d5 {[%clk 01:31:22]}
{[%emt 00:00:05]} 3. Nc3 {[%clk 01:31:07]} {[%emt 00:00:06]} Nf6 {[%clk
01:31:47]} {[%emt 00:00:05]} 4. e3 {[%clk 01:31:27]} {[%emt 00:00:11]} Bf5
{[%clk 01:32:11]} {[%emt 00:00:06]} 5. cxd5 {[%clk 01:31:38]} {[%emt 00:00:20]}
cxd5 {[%clk 01:32:34]} {[%emt 00:00:06]} 6. Qb3 {[%clk 01:31:53]} {[%emt
00:00:15]} Nc6 {[%clk 01:32:57]} {[%emt 00:00:07]} 7. Qxb7 {[%clk 01:30:11]}
{[%emt 00:02:12]} Bd7 {[%clk 01:32:53]} {[%emt 00:00:34]} 8. Qb3 {[%clk
01:25:38]} {[%emt 00:05:02]} Rb8 {[%clk 01:33:01]} {[%emt 00:00:22]} 9. Qd1
{[%clk 01:25:46]} {[%emt 00:00:19]} e5 {[%clk 01:33:27]} {[%emt 00:00:07]} 10.
dxe5 {[%clk 01:08:26]} {[%emt 00:17:51]} Nxe5 {[%clk 01:33:53]} {[%emt
00:00:03]} 11. Be2 {[%clk 01:08:35]} {[%emt 00:00:22]} Bd6 {[%clk 01:34:14]}
{[%emt 00:00:09]} 12. Nf3 {[%clk 01:08:46]} {[%emt 00:00:18]} Nxf3+ {[%clk
01:34:34]} {[%emt 00:00:11]} 13. Bxf3 {[%clk 01:08:55]} {[%emt 00:00:20]} Qc7
{[%clk 01:34:46]} {[%emt 00:00:14]} 14. h3 {[%clk 01:05:43]} {[%emt 00:03:46]}
O-O {[%clk 01:35:07]} {[%emt 00:00:09]} 15. O-O {[%clk 01:04:34]} {[%emt
00:01:40]} Rfd8 {[%clk 01:35:31]} {[%emt 00:00:06]} 16. Qd3 {[%clk 00:56:13]}
{[%emt 00:08:50]} Bh2+ {[%clk 01:35:23]} {[%emt 00:00:38]} 17. Kh1 {[%clk
00:56:32]} {[%emt 00:00:12]} Be5 {[%clk 01:35:46]} {[%emt 00:00:07]} 18. Rd1
{[%clk 00:55:26]} {[%emt 00:01:35]} Ne4 {[%clk 01:35:17]} {[%emt 00:00:59]} 19.
Bxe4 {[%clk 00:36:47]} {[%emt 00:19:09]} dxe4 {[%clk 01:35:36]} {[%emt
00:00:10]} 20. Qc2 {[%clk 00:35:31]} {[%emt 00:01:46]} Bf5 {[%clk 01:22:47]}
{[%emt 00:13:19]} 21. Bd2 {[%clk 00:29:49]} {[%emt 00:06:11]} Rd3 {[%clk
01:21:29]} {[%emt 00:01:49]} 22. Be1 {[%clk 00:29:55]} {[%emt 00:00:24]} Qd7
{[%clk 01:17:33]} {[%emt 00:04:26]} 23. Qa4 {[%clk 00:29:26]} {[%emt 00:01:00]}
Qxa4 {[%clk 01:15:04]} {[%emt 00:02:59]} 24. Nxa4 {[%clk 00:29:50]} {[%emt
00:00:06]} Bxb2 {[%clk 01:13:53]} {[%emt 00:01:41]} 25. Rab1 {[%clk 00:27:17]}
{[%emt 00:03:02]} Rxd1 {[%clk 00:55:31]} {[%emt 00:18:53]} 26. Rxd1 {[%clk
00:24:56]} {[%emt 00:02:51]} Ba3 {[%clk 00:54:51]} {[%emt 00:01:09]} 27. Bc3
{[%clk 00:20:57]} {[%emt 00:04:28]} Be6 {[%clk 00:49:01]} {[%emt 00:06:21]} 28.
Bd4 {[%clk 00:18:06]} {[%emt 00:03:22]} a5 {[%clk 00:33:53]} {[%emt 00:15:37]}
29. Bc5 {[%clk 00:14:31]} {[%emt 00:04:05]} Bxc5 {[%clk 00:33:05]} {[%emt
00:01:18]} 30. Nxc5 {[%clk 00:14:57]} {[%emt 00:00:04]} Bxa2 {[%clk 00:33:15]}
{[%emt 00:00:20]} 31. Nxe4 {[%clk 00:13:54]} {[%emt 00:01:34]} Rb1 {[%clk
00:26:38]} {[%emt 00:07:07]} 32. Nc3 {[%clk 00:08:31]} {[%emt 00:05:53]} Rxd1+
{[%clk 00:26:52]} {[%emt 00:00:16]} 33. Nxd1 {[%clk 00:08:59]} {[%emt
00:00:03]} Bb3 {[%clk 00:26:09]} {[%emt 00:01:12]} 34. Nc3 {[%clk 00:09:18]}
{[%emt 00:00:11]} a4 {[%clk 00:25:35]} {[%emt 00:01:04]} 35. Nb1 {[%clk
00:09:36]} {[%emt 00:00:12]} Kf8 {[%clk 00:25:44]} {[%emt 00:00:21]} 36. Kg1
{[%clk 00:09:59]} {[%emt 00:00:06]} Ke7 {[%clk 00:26:06]} {[%emt 00:00:09]} 37.
Kf1 {[%clk 00:10:21]} {[%emt 00:00:08]} Kd6 {[%clk 00:26:29]} {[%emt 00:00:07]}
38. Ke2 {[%clk 00:10:28]} {[%emt 00:00:22]} Kc5 {[%clk 00:25:51]} {[%emt
00:01:07]} 39. Kd2 {[%clk 00:08:14]} {[%emt 00:02:45]} Kb4 {[%clk 00:23:48]}
{[%emt 00:02:33]} 40. Kc1 {[%clk 00:08:09]} {[%emt 00:00:35]} a3 {[%clk
00:22:16]} {[%emt 00:02:01]} 41. Nd2 {[%clk 00:08:13]} {[%emt 00:00:26]} Kc3
{[%clk 00:20:20]} {[%emt 00:02:24]} 42. Nb1+ {[%clk 00:29:09]} {[%emt
00:09:36]} Kd3 {[%clk 00:49:45]} {[%emt 00:01:04]} 43. Nxa3 {[%clk 00:29:28]}
{[%emt 00:00:12]} Ke2 {[%clk 00:49:49]} {[%emt 00:00:25]} 44. f4 {[%clk
00:17:04]} {[%emt 00:12:54]} Kxe3 {[%clk 00:49:45]} {[%emt 00:00:34]} 45. f5
{[%clk 00:17:12]} {[%emt 00:00:22]} Kf4 {[%clk 00:49:42]} {[%emt 00:00:33]} 46.
Kd2 {[%clk 00:09:12]} {[%emt 00:08:31]} Bd5 {[%clk 00:48:17]} {[%emt 00:01:53]}
47. g4 {[%clk 00:08:32]} {[%emt 00:01:11]} Bg2 {[%clk 00:48:33]} {[%emt
00:00:13]} 48. Nc4 {[%clk 00:07:51]} {[%emt 00:01:12]} Bxh3 {[%clk 00:48:25]}
{[%emt 00:00:38]} 49. Nd6 {[%clk 00:08:08]} {[%emt 00:00:12]} Bxg4 {[%clk
00:46:28]} {[%emt 00:02:27]} 50. f6 {[%clk 00:08:29]} {[%emt 00:00:10]} gxf6
{[%clk 00:46:38]} {[%emt 00:00:20]} 51. Ke1 {[%clk 00:08:14]} {[%emt 00:00:45]}
h5 {[%clk 00:45:18]} {[%emt 00:01:50]} 52. Kf2 {[%clk 00:08:20]} {[%emt
00:00:24]} Bf3 {[%clk 00:44:21]} {[%emt 00:01:25]} 53. Nxf7 {[%clk 00:07:38]}
{[%emt 00:01:14]} h4 {[%clk 00:44:33]} {[%emt 00:00:17]} 54. Nh8 {[%clk
00:07:35]} {[%emt 00:00:34]} Bh5 {[%clk 00:44:51]} {[%emt 00:00:11]} 55. Kg2
{[%clk 00:07:54]} {[%emt 00:00:11]} Ke5 {[%emt 00:00:15]} 0-1

[Event "Elitserien 2019/2020, round 7-9"]
[Site "Elite stadshotellet, Kungsgatan 6, Vaxjo, Sweden"]
[Date "2020.10.17"]
[Round "2.7"]
[White "Dragicevic, Drazen"]
[Black "Wernberg, Hugo"]
[Result "1/2-1/2"]
[TimeControl "90 minutes for 40 moves + 30 minutes for the rest of the game + 30 seconds per move from move one."]
[WhiteTitle "FM"]
[BlackTitle "CM"]
[WhiteFideId "1707922"]
[BlackFideId "1737511"]
[WhiteElo "2286"]
[BlackElo "2063"]

1. c4 {[%clk 01:30:50]} {[%emt 00:00:09]} c5 {[%clk 01:30:44]} {[%emt
00:00:16]} 2. Nf3 {[%clk 01:30:50]} {[%emt 00:00:30]} Nc6 {[%clk 01:31:01]}
{[%emt 00:00:14]} 3. d4 {[%clk 01:30:58]} {[%emt 00:00:23]} cxd4 {[%clk
01:30:32]} {[%emt 00:00:58]} 4. Nxd4 {[%clk 01:31:19]} {[%emt 00:00:08]} g6
{[%clk 01:29:37]} {[%emt 00:01:25]} 5. e4 {[%clk 01:30:59]} {[%emt 00:00:50]}
Nf6 {[%clk 01:29:19]} {[%emt 00:00:48]} 6. Nc3 {[%clk 01:30:34]} {[%emt
00:00:55]} Nxd4 {[%clk 01:28:34]} {[%emt 00:01:15]} 7. Qxd4 {[%clk 01:30:12]}
{[%emt 00:00:52]} d6 {[%clk 01:28:37]} {[%emt 00:00:27]} 8. c5 {[%clk
01:18:11]} {[%emt 00:12:31]} dxc5 {[%clk 01:25:59]} {[%emt 00:03:08]} 9. Qxc5
{[%clk 01:14:12]} {[%emt 00:04:29]} b6 {[%clk 01:17:29]} {[%emt 00:09:00]} 10.
Qb4 {[%clk 01:08:00]} {[%emt 00:06:41]} Bg7 {[%clk 00:56:44]} {[%emt 00:21:15]}
11. Bb5+ {[%clk 01:05:13]} {[%emt 00:03:17]} Nd7 {[%clk 00:55:04]} {[%emt
00:02:10]} 12. Bc6 {[%clk 00:55:44]} {[%emt 00:09:59]} O-O {[%clk 00:41:29]}
{[%emt 00:14:05]} 13. Bxa8 {[%clk 00:51:02]} {[%emt 00:05:12]} Ba6 {[%clk
00:40:39]} {[%emt 00:01:20]} 14. Bd5 {[%clk 00:49:40]} {[%emt 00:01:51]} Nc5
{[%clk 00:37:46]} {[%emt 00:03:22]} 15. Qa3 {[%clk 00:48:48]} {[%emt 00:01:24]}
Qc8 {[%clk 00:29:49]} {[%emt 00:08:27]} 16. Be3 {[%clk 00:41:12]} {[%emt
00:08:05]} Qg4 {[%clk 00:23:36]} {[%emt 00:06:42]} 17. f3 {[%clk 00:06:44]}
{[%emt 00:34:59]} Nd3+ {[%clk 00:21:43]} {[%emt 00:02:23]} 18. Kf1 {[%clk
00:05:36]} {[%emt 00:01:39]} Nf4+ {[%clk 00:19:16]} {[%emt 00:02:58]} 19. Qxa6
{[%clk 00:05:56]} {[%emt 00:00:09]} Qxg2+ {[%clk 00:19:09]} {[%emt 00:00:36]}
20. Ke1 {[%clk 00:06:25]} {[%emt 00:00:02]} Qxh1+ {[%clk 00:12:08]} {[%emt
00:07:31]} 21. Qf1 {[%clk 00:06:37]} {[%emt 00:00:18]} Qxh2 {[%clk 00:11:39]}
{[%emt 00:00:59]} 22. Bxf4 {[%clk 00:03:44]} {[%emt 00:03:24]} Qxb2 {[%clk
00:10:48]} {[%emt 00:01:21]} 23. Rd1 {[%clk 00:04:10]} {[%emt 00:00:03]} Bxc3+
{[%clk 00:10:26]} {[%emt 00:00:52]} 24. Bd2 {[%clk 00:04:39]} {[%emt 00:00:01]}
e6 {[%clk 00:08:03]} {[%emt 00:02:54]} 25. Bb3 {[%clk 00:03:35]} {[%emt
00:01:33]} Bf6 {[%clk 00:07:01]} {[%emt 00:01:32]} 26. Qe2 {[%clk 00:02:54]}
{[%emt 00:01:11]} Rd8 {[%clk 00:06:10]} {[%emt 00:01:21]} 27. Kf1 {[%clk
00:01:45]} {[%emt 00:01:39]} Be7 {[%clk 00:04:37]} {[%emt 00:02:02]} 28. Bf4
{[%clk 00:01:12]} {[%emt 00:01:02]} Qxe2+ {[%clk 00:03:34]} {[%emt 00:01:33]}
29. Kxe2 {[%clk 00:01:41]} {[%emt 00:00:01]} Rxd1 {[%clk 00:03:49]} {[%emt
00:00:15]} 30. Bxd1 {[%clk 00:02:01]} {[%emt 00:00:10]} Bc5 {[%clk 00:02:46]}
{[%emt 00:01:33]} 31. Ba4 {[%clk 00:01:31]} {[%emt 00:01:00]} f6 {[%clk
00:01:51]} {[%emt 00:01:25]} 32. Kd3 {[%clk 00:01:04]} {[%emt 00:00:57]} Kf7
{[%clk 00:01:03]} {[%emt 00:01:17]} 33. Bb8 {[%clk 00:00:43]} {[%emt 00:00:50]}
a6 {[%clk 00:01:05]} {[%emt 00:00:28]} 34. Bf4 {[%clk 00:00:41]} {[%emt
00:00:31]} h5 {[%clk 00:00:58]} {[%emt 00:00:38]} 35. Bc6 {[%clk 00:00:36]}
{[%emt 00:00:35]} h4 {[%clk 00:01:01]} {[%emt 00:00:26]} 36. Bb7 {[%clk
00:01:04]} {[%emt 00:00:02]} a5 {[%clk 00:01:05]} {[%emt 00:00:27]} 37. Bh2
{[%clk 00:00:46]} {[%emt 00:00:47]} g5 {[%clk 00:01:07]} {[%emt 00:00:28]} 38.
Bc8 {[%clk 00:00:51]} {[%emt 00:00:25]} Ke7 {[%clk 00:01:11]} {[%emt 00:00:26]}
39. Ke2 {[%clk 00:00:46]} {[%emt 00:00:35]} Bd4 {[%clk 00:00:43]} {[%emt
00:00:58]} 40. Kf1 {[%clk 00:00:38]} {[%emt 00:00:39]} Bc5 {[%clk 00:00:35]}
{[%emt 00:00:38]} 41. Kg2 {[%clk 00:29:42]} {[%emt 00:01:26]} b5 {[%clk
00:21:41]} {[%emt 00:09:24]} 42. Kh3 {[%clk 00:21:33]} {[%emt 00:08:39]} e5
{[%clk 00:14:14]} {[%emt 00:07:57]} 43. Ba6 {[%clk 00:14:22]} {[%emt 00:07:40]}
b4 {[%clk 00:14:17]} {[%emt 00:00:27]} 44. Bb5 {[%clk 00:14:42]} {[%emt
00:00:11]} Kd6 {[%clk 00:12:37]} {[%emt 00:02:10]} 45. Kg2 {[%clk 00:09:19]}
{[%emt 00:05:53]} Be3 {[%clk 00:11:25]} {[%emt 00:01:42]} 46. Kf1 {[%clk
00:07:25]} {[%emt 00:02:23]} Kc5 {[%clk 00:10:10]} {[%emt 00:01:45]} 47. Bd7
{[%clk 00:07:35]} {[%emt 00:00:20]} Kc4 {[%clk 00:02:53]} {[%emt 00:07:48]} 48.
Ke2 {[%clk 00:07:41]} {[%emt 00:00:24]} Kd4 {[%clk 00:01:06]} {[%emt 00:02:16]}
49. Ba4 {[%clk 00:04:34]} {[%emt 00:03:37]} Bf4 {[%clk 00:01:10]} {[%emt
00:00:26]} 50. Bg1+ {[%clk 00:04:34]} {[%emt 00:00:30]} Kc3 {[%clk 00:01:19]}
{[%emt 00:00:21]} 51. Bb6 {[%clk 00:04:44]} {[%emt 00:00:21]} h3 {[%clk
00:00:38]} {[%emt 00:01:11]} 52. Kf1 {[%clk 00:04:51]} {[%emt 00:00:23]} Kd3
{[%clk 00:00:33]} {[%emt 00:00:36]} 53. Bb5+ {[%clk 00:04:26]} {[%emt
00:00:54]} Kc3 {[%clk 00:00:33]} {[%emt 00:00:29]} 54. Bxa5 {[%clk 00:04:39]}
{[%emt 00:00:18]} Bd2 {[%clk 00:00:38]} {[%emt 00:00:25]} 55. a3 {[%clk
00:03:39]} {[%emt 00:01:30]} Kd4 {[%clk 00:00:33]} {[%emt 00:00:34]} 56. Bb6+
{[%clk 00:03:53]} {[%emt 00:00:17]} Kc3 {[%clk 00:00:51]} {[%emt 00:00:12]} 57.
axb4 {[%clk 00:04:15]} {[%emt 00:00:08]} Kxb4 {[%clk 00:01:09]} {[%emt
00:00:12]} 58. Bd7 {[%clk 00:04:34]} {[%emt 00:00:10]} h2 {[%clk 00:01:26]}
{[%emt 00:00:13]} 59. Kg2 {[%clk 00:04:52]} {[%emt 00:00:12]} Bf4 {[%clk
00:01:45]} {[%emt 00:00:12]} 60. Bd8 {[%clk 00:04:25]} {[%emt 00:00:57]} Kc4
{[%clk 00:01:23]} {[%emt 00:00:52]} 61. Bxf6 {[%clk 00:04:20]} {[%emt
00:00:35]} Kc5 {[%clk 00:01:21]} {[%emt 00:00:31]} 62. Be7+ {[%clk 00:04:03]}
{[%emt 00:00:47]} Kb6 {[%clk 00:01:34]} {[%emt 00:00:17]} 63. Bd6 {[%clk
00:04:15]} {[%emt 00:00:19]} Kb7 {[%clk 00:01:52]} {[%emt 00:00:12]} 64. Ba4
{[%clk 00:03:59]} {[%emt 00:00:46]} Kc8 {[%clk 00:02:07]} {[%emt 00:00:15]} 65.
Bc6 {[%clk 00:04:11]} {[%emt 00:00:17]} Kd8 {[%clk 00:02:23]} {[%emt 00:00:14]}
66. Kh1 {[%clk 00:04:29]} {[%emt 00:00:13]} Kc8 {[%clk 00:02:44]} {[%emt
00:00:09]} 67. Kg2 {[%clk 00:02:59]} {[%emt 00:01:59]} Kd8 {[%clk 00:03:08]}
{[%emt 00:00:07]} 68. Bb7 {[%clk 00:03:10]} {[%emt 00:00:19]} Kd7 {[%clk
00:03:24]} {[%emt 00:00:14]} 69. Bb8 {[%clk 00:03:34]} {[%emt 00:00:06]} Kd8
{[%clk 00:03:40]} {[%emt 00:00:14]} 70. Bc6 {[%clk 00:03:49]} {[%emt 00:00:15]}
Kc8 {[%clk 00:04:00]} {[%emt 00:00:10]} 71. Bd6 {[%clk 00:03:26]} {[%emt
00:00:54]} Kd8 {[%clk 00:04:23]} {[%emt 00:00:07]} 72. Kh1 {[%clk 00:03:39]}
{[%emt 00:00:17]} Kc8 {[%clk 00:04:42]} {[%emt 00:00:11]} 73. Bb5 {[%clk
00:04:02]} {[%emt 00:00:07]} Kd8 {[%clk 00:04:58]} {[%emt 00:00:14]} 74. Bf1
{[%clk 00:04:24]} {[%emt 00:00:07]} Kd7 {[%clk 00:05:09]} {[%emt 00:00:21]} 75.
Bb4 {[%clk 00:04:42]} {[%emt 00:00:11]} Kc7 {[%clk 00:05:16]} {[%emt 00:00:23]}
76. Be1 {[%clk 00:04:53]} {[%emt 00:00:19]} Kd6 {[%clk 00:05:25]} {[%emt
00:00:21]} 77. Bh3 {[%clk 00:05:03]} {[%emt 00:00:19]} Ke7 {[%clk 00:05:35]}
{[%emt 00:00:21]} 78. Bb4+ {[%clk 00:05:22]} {[%emt 00:00:10]} Kd8 {[%clk
00:05:49]} {[%emt 00:00:16]} 79. Bd6 {[%clk 00:05:44]} {[%emt 00:00:08]} Ke8
{[%clk 00:06:09]} {[%emt 00:00:11]} 80. Bc7 {[%clk 00:06:03]} {[%emt 00:00:11]}
Ke7 {[%clk 00:06:10]} {[%emt 00:00:28]} 81. Bc8 {[%clk 00:06:18]} {[%emt
00:00:15]} Ke8 {[%clk 00:06:26]} {[%emt 00:00:15]} 82. Bd6 {[%clk 00:06:28]}
{[%emt 00:00:21]} Kd8 {[%clk 00:06:28]} {[%emt 00:00:28]} 83. Be6 {[%clk
00:06:50]} {[%emt 00:00:07]} Ke8 {[%clk 00:06:21]} {[%emt 00:00:38]} 84. Bf5
{[%clk 00:07:05]} {[%emt 00:00:15]} Kd8 {[%clk 00:06:25]} {[%emt 00:00:26]} 85.
Bh3 {[%clk 00:07:12]} {[%emt 00:00:22]} Ke8 {[%clk 00:06:29]} {[%emt 00:00:27]}
86. Bc5 {[%clk 00:07:32]} {[%emt 00:00:10]} Kd8 {[%clk 00:06:33]} {[%emt
00:00:25]} 87. Bb6+ {[%clk 00:07:41]} {[%emt 00:00:21]} Ke7 {[%clk 00:06:13]}
{[%emt 00:00:49]} 88. Be3 {[%clk 00:08:06]} {[%emt 00:00:06]} Bxe3 {[%clk
00:06:29]} {[%emt 00:00:14]} 1/2-1/2